[Event "Titled Tuesday Blitz May 9 Early 2023"]
[White "Abrosimov, Vladimir"]
[Black "Zavortink, Matt"]
[WhiteFideId "4166892"]
[BlackFideId "2034263"]
[WhiteElo "2336"]
[BlackElo "2453"]
[Result "0-1"]
[Round "08"]
[TimeControl "180+2"]
[Date "2023.05.09"]
[WhiteClock "0:01:19"]
[BlackClock "0:00:48"]

1. c4 {[%clk 0:03:00]}  Nf6 {[%clk 0:02:58]} 2. Nc3 {[%clk 0:03:01]}  g6 {[%clk 0:02:58]} 3. g3 {[%clk 0:03:01]}  Bg7 {[%clk 0:02:59]} 4. Bg2 {[%clk 0:03:01]}  O-O {[%clk 0:02:59]} 5. d3 {[%clk 0:03:01]}  c5 {[%clk 0:02:58]} 6. e4 {[%clk 0:03:01]}  d6 {[%clk 0:02:56]} 7. Nge2 {[%clk 0:03:01]}  Nc6 {[%clk 0:02:56]} 8. O-O {[%clk 0:03:01]}  Rb8 {[%clk 0:02:56]} 9. f4 {[%clk 0:03:00]}  Bg4 {[%clk 0:02:55]} 10. h3 {[%clk 0:03:00]}  Bxe2 {[%clk 0:02:55]} 11. Nxe2 {[%clk 0:03:00]}  Ne8 {[%clk 0:02:51]} 12. a4 {[%clk 0:02:58]}  Nc7 {[%clk 0:02:50]} 13. Nc3 {[%clk 0:02:54]}  a6 {[%clk 0:02:44]} 14. f5 {[%clk 0:02:52]}  b5 {[%clk 0:02:38]} 15. axb5 {[%clk 0:02:50]}  axb5 {[%clk 0:02:37]} 16. g4 {[%clk 0:02:33]}  bxc4 {[%clk 0:02:33]} 17. dxc4 {[%clk 0:02:33]}  Nd4 {[%clk 0:02:23]} 18. Kh1 {[%clk 0:02:22]}  Nb3 {[%clk 0:02:18]} 19. Rb1 {[%clk 0:02:16]}  Nxc1 {[%clk 0:02:16]} 20. Qxc1 {[%clk 0:02:14]}  Rb4 {[%clk 0:02:11]} 21. Nd5 {[%clk 0:02:12]}  Nxd5 {[%clk 0:02:08]} 22. exd5 {[%clk 0:02:10]}  Qb6 {[%clk 0:02:00]} 23. Rf2 {[%clk 0:01:56]}  Bd4 {[%clk 0:01:23]} 24. Re2 {[%clk 0:01:46]}  Bf6 {[%clk 0:01:10]} 25. g5 {[%clk 0:01:38]}  Be5 {[%clk 0:01:09]} 26. Rf2 {[%clk 0:01:32]}  gxf5 {[%clk 0:00:55]} 27. Rxf5 {[%clk 0:01:20]}  Rxb2 {[%clk 0:00:50]} 28. Qxb2 {[%clk 0:01:19]}  Bxb2 {[%clk 0:00:48]} 0-1


[Site "https://www.chess.com"]

[Event "Titled Tuesday Blitz May 9 Early 2023"]
[White "Hirneise, Jens"]
[Black "Sarkar, Justin"]
[WhiteFideId "24614734"]
[BlackFideId "2010011"]
[WhiteElo "2345"]
[BlackElo "2168"]
[Result "0-1"]
[Round "08"]
[TimeControl "180+2"]
[Date "2023.05.09"]
[WhiteClock "0:00:00"]
[BlackClock "0:00:08"]

1. Nf3 {[%clk 0:03:00]}  b5 {[%clk 0:02:27]} 2. e4 {[%clk 0:02:53]}  Bb7 {[%clk 0:02:26]} 3. Bxb5 {[%clk 0:02:43]}  Bxe4 {[%clk 0:02:24]} 4. O-O {[%clk 0:02:43]}  Nf6 {[%clk 0:02:16]} 5. Nc3 {[%clk 0:02:39]}  Bb7 {[%clk 0:02:15]} 6. d4 {[%clk 0:02:38]}  e6 {[%clk 0:02:14]} 7. Re1 {[%clk 0:02:26]}  Bb4 {[%clk 0:02:10]} 8. Bg5 {[%clk 0:02:22]}  h6 {[%clk 0:02:02]} 9. Bh4 {[%clk 0:02:03]}  O-O {[%clk 0:01:58]} 10. Bd3 {[%clk 0:02:00]}  Be7 {[%clk 0:01:49]} 11. Bg3 {[%clk 0:01:56]}  Nh5 {[%clk 0:01:41]} 12. Ne4 {[%clk 0:01:51]}  Nxg3 {[%clk 0:01:40]} 13. Nxg3 {[%clk 0:01:47]}  c5 {[%clk 0:01:35]} 14. dxc5 {[%clk 0:01:34]}  Bxc5 {[%clk 0:01:33]} 15. Qe2 {[%clk 0:01:30]}  d5 {[%clk 0:01:29]} 16. Rad1 {[%clk 0:01:22]}  Qb6 {[%clk 0:01:22]} 17. c3 {[%clk 0:01:19]}  Nd7 {[%clk 0:01:17]} 18. b4 {[%clk 0:01:13]}  Be7 {[%clk 0:01:07]} 19. Nf5 {[%clk 0:01:06]}  Bf6 {[%clk 0:01:05]} 20. N5d4 {[%clk 0:01:04]}  a5 {[%clk 0:01:02]} 21. a3 {[%clk 0:01:00]}  e5 {[%clk 0:01:00]} 22. Nf5 {[%clk 0:00:54]}  e4 {[%clk 0:00:53]} 23. Bb1 {[%clk 0:00:46]}  exf3 {[%clk 0:00:51]} 24. Qd3 {[%clk 0:00:46]}  g6 {[%clk 0:00:41]} 25. Qxf3 {[%clk 0:00:45]}  Ne5 {[%clk 0:00:32]} 26. Qg3 {[%clk 0:00:37]}  Rfe8 {[%clk 0:00:18]} 27. h4 {[%clk 0:00:31]}  Kf8 {[%clk 0:00:16]} 28. Nxh6 {[%clk 0:00:28]}  Bg7 {[%clk 0:00:16]} 29. Qf4 {[%clk 0:00:24]}  Qf6 {[%clk 0:00:13]} 30. Qd2 {[%clk 0:00:22]}  Nc4 {[%clk 0:00:12]} 31. Qc1 {[%clk 0:00:20]}  Qxh4 {[%clk 0:00:11]} 32. Nxf7 {[%clk 0:00:17]}  Kxf7 {[%clk 0:00:11]} 33. Qc2 {[%clk 0:00:15]}  Rxe1+ {[%clk 0:00:09]} 34. Rxe1 {[%clk 0:00:14]}  Qf6 {[%clk 0:00:10]} 35. Qd3 {[%clk 0:00:12]}  Re8 {[%clk 0:00:09]} 36. Rd1 {[%clk 0:00:09]}  Ne5 {[%clk 0:00:08]} 37. Qb5 {[%clk 0:00:00]}  Bc6 {[%clk 0:00:08]} 0-1


[Site "https://www.chess.com"]

[Event "Titled Tuesday Blitz May 9 Early 2023"]
[White "Tsyhanchuk, Stanislav"]
[Black "KorolDimitriy75"]
[WhiteFideId "13505130"]
[WhiteElo "2173"]
[BlackElo "2438"]
[Result "0-1"]
[Round "08"]
[TimeControl "180+2"]
[Date "2023.05.09"]
[WhiteClock "0:00:13"]
[BlackClock "0:00:11"]

1. a3 {[%clk 0:03:00]}  c5 {[%clk 0:02:50]} 2. Nf3 {[%clk 0:02:56]}  g6 {[%clk 0:02:50]} 3. e3 {[%clk 0:02:53]}  Bg7 {[%clk 0:02:51]} 4. d4 {[%clk 0:02:53]}  Nf6 {[%clk 0:02:50]} 5. d5 {[%clk 0:02:52]}  O-O {[%clk 0:02:48]} 6. c4 {[%clk 0:02:52]}  b5 {[%clk 0:02:38]} 7. cxb5 {[%clk 0:02:49]}  a6 {[%clk 0:02:39]} 8. a4 {[%clk 0:02:48]}  d6 {[%clk 0:02:31]} 9. Nc3 {[%clk 0:02:48]}  Qa5 {[%clk 0:02:05]} 10. Bd2 {[%clk 0:02:42]}  axb5 {[%clk 0:02:00]} 11. Bxb5 {[%clk 0:02:37]}  Ba6 {[%clk 0:02:00]} 12. O-O {[%clk 0:02:36]}  Nbd7 {[%clk 0:01:59]} 13. e4 {[%clk 0:02:32]}  Rfb8 {[%clk 0:01:58]} 14. Re1 {[%clk 0:02:31]}  Bxb5 {[%clk 0:01:44]} 15. Nxb5 {[%clk 0:02:32]}  Qb6 {[%clk 0:01:44]} 16. Bc3 {[%clk 0:02:26]}  Ne8 {[%clk 0:01:14]} 17. e5 {[%clk 0:02:22]}  Nc7 {[%clk 0:01:13]} 18. Nxc7 {[%clk 0:02:07]}  Qxc7 {[%clk 0:01:12]} 19. e6 {[%clk 0:02:05]}  fxe6 {[%clk 0:01:09]} 20. dxe6 {[%clk 0:01:42]}  Nf6 {[%clk 0:00:47]} 21. a5 {[%clk 0:01:35]}  Qb7 {[%clk 0:00:40]} 22. Qe2 {[%clk 0:01:19]}  Ra6 {[%clk 0:00:39]} 23. Nd2 {[%clk 0:01:16]}  d5 {[%clk 0:00:39]} 24. Be5 {[%clk 0:01:15]}  Rba8 {[%clk 0:00:38]} 25. b4 {[%clk 0:00:54]}  Qxb4 {[%clk 0:00:24]} 26. Reb1 {[%clk 0:00:52]}  Qg4 {[%clk 0:00:17]} 27. Qb5 {[%clk 0:00:44]}  Qxe6 {[%clk 0:00:16]} 28. Bg3 {[%clk 0:00:42]}  c4 {[%clk 0:00:13]} 29. Nf3 {[%clk 0:00:40]}  h6 {[%clk 0:00:12]} 30. Nd4 {[%clk 0:00:38]}  Qf7 {[%clk 0:00:12]} 31. Be5 {[%clk 0:00:33]}  Ne4 {[%clk 0:00:10]} 32. Bxg7 {[%clk 0:00:28]}  Kxg7 {[%clk 0:00:10]} 33. Qb2 {[%clk 0:00:23]}  Qf6 {[%clk 0:00:06]} 34. Ne6+ {[%clk 0:00:13]}  Rxe6 {[%clk 0:00:05]} 35. Qxf6+ {[%clk 0:00:12]}  Kxf6 {[%clk 0:00:06]} 36. f3 {[%clk 0:00:12]}  Nc5 {[%clk 0:00:05]} 37. Rb5 {[%clk 0:00:12]}  Rc6 {[%clk 0:00:04]} 38. Rab1 {[%clk 0:00:08]}  e6 {[%clk 0:00:05]} 39. Kf2 {[%clk 0:00:07]}  Nb3 {[%clk 0:00:04]} 40. Ke2 {[%clk 0:00:07]}  Rxa5 {[%clk 0:00:04]} 41. R1xb3 {[%clk 0:00:06]}  Rxb5 {[%clk 0:00:04]} 42. Rxb5 {[%clk 0:00:06]}  d4 {[%clk 0:00:04]} 43. Kd2 {[%clk 0:00:06]}  e5 {[%clk 0:00:05]} 44. Rb1 {[%clk 0:00:06]}  c3+ {[%clk 0:00:05]} 45. Kc2 {[%clk 0:00:04]}  Ra6 {[%clk 0:00:05]} 46. Kd3 {[%clk 0:00:03]}  Ra2 {[%clk 0:00:06]} 47. Rb6+ {[%clk 0:00:03]}  Kf5 {[%clk 0:00:06]} 48. g4+ {[%clk 0:00:03]}  Kg5 {[%clk 0:00:05]} 49. h3 {[%clk 0:00:02]}  Rd2+ {[%clk 0:00:05]} 50. Ke4 {[%clk 0:00:03]}  c2 {[%clk 0:00:05]} 51. h4+ {[%clk 0:00:02]}  Kxh4 {[%clk 0:00:04]} 52. Rxg6 {[%clk 0:00:03]}  c1=Q {[%clk 0:00:04]} 53. Rxh6+ {[%clk 0:00:04]}  Kg3 {[%clk 0:00:05]} 54. g5 {[%clk 0:00:05]}  Qc2+ {[%clk 0:00:05]} 55. Kxe5 {[%clk 0:00:04]}  Rh2 {[%clk 0:00:06]} 56. g6 {[%clk 0:00:05]}  Rxh6 {[%clk 0:00:05]} 57. g7 {[%clk 0:00:06]}  Rh5+ {[%clk 0:00:06]} 58. Kxd4 {[%clk 0:00:06]}  Qg6 {[%clk 0:00:06]} 59. g8=Q {[%clk 0:00:07]}  Qxg8 {[%clk 0:00:06]} 60. f4 {[%clk 0:00:08]}  Qd8+ {[%clk 0:00:07]} 61. Ke3 {[%clk 0:00:08]}  Rf5 {[%clk 0:00:07]} 62. Ke2 {[%clk 0:00:09]}  Rxf4 {[%clk 0:00:08]} 63. Ke1 {[%clk 0:00:10]}  Qe7+ {[%clk 0:00:08]} 64. Kd1 {[%clk 0:00:10]}  Qe5 {[%clk 0:00:09]} 65. Kc1 {[%clk 0:00:11]}  Rd4 {[%clk 0:00:09]} 66. Kb1 {[%clk 0:00:12]}  Qc5 {[%clk 0:00:10]} 67. Ka1 {[%clk 0:00:12]}  Rb4 {[%clk 0:00:10]} 68. Ka2 {[%clk 0:00:13]}  Qa5# {[%clk 0:00:11]} 0-1


[Site "https://www.chess.com"]

[Event "Titled Tuesday Blitz May 9 Early 2023"]
[White "Harriott, Tyrell"]
[Black "Botez, Alexandra"]
[WhiteFideId "2086484"]
[BlackFideId "2603365"]
[WhiteElo "2107"]
[BlackElo "2040"]
[Result "1-0"]
[Round "08"]
[TimeControl "180+2"]
[Date "2023.05.09"]
[WhiteClock "0:00:58"]
[BlackClock "0:00:00"]

1. d4 {[%clk 0:03:00]}  c5 {[%clk 0:02:58]} 2. e3 {[%clk 0:03:01]}  cxd4 {[%clk 0:02:55]} 3. exd4 {[%clk 0:03:02]}  d5 {[%clk 0:02:56]} 4. f4 {[%clk 0:02:59]}  Nf6 {[%clk 0:02:56]} 5. Bd3 {[%clk 0:02:59]}  Nc6 {[%clk 0:02:55]} 6. c3 {[%clk 0:02:59]}  Bg4 {[%clk 0:02:53]} 7. Ne2 {[%clk 0:02:59]}  e6 {[%clk 0:02:51]} 8. Nd2 {[%clk 0:02:59]}  Bd6 {[%clk 0:02:51]} 9. O-O {[%clk 0:02:59]}  Qc7 {[%clk 0:02:37]} 10. Nf3 {[%clk 0:02:59]}  Ne4 {[%clk 0:02:36]} 11. Bxe4 {[%clk 0:02:57]}  dxe4 {[%clk 0:02:35]} 12. Ng5 {[%clk 0:02:57]}  Bf5 {[%clk 0:02:31]} 13. Ng3 {[%clk 0:02:57]}  O-O-O {[%clk 0:02:16]} 14. N5xe4 {[%clk 0:02:53]}  Be7 {[%clk 0:02:16]} 15. Qe2 {[%clk 0:02:51]}  Bg6 {[%clk 0:01:56]} 16. f5 {[%clk 0:02:49]}  exf5 {[%clk 0:01:56]} 17. Nxf5 {[%clk 0:02:50]}  Bxf5 {[%clk 0:01:53]} 18. Rxf5 {[%clk 0:02:49]}  Rhf8 {[%clk 0:01:50]} 19. Rf1 {[%clk 0:02:41]}  f5 {[%clk 0:01:48]} 20. Ng3 {[%clk 0:02:39]}  Bd6 {[%clk 0:01:44]} 21. Qf3 {[%clk 0:02:33]}  g6 {[%clk 0:01:43]} 22. Bf4 {[%clk 0:02:31]}  Rde8 {[%clk 0:01:35]} 23. Bh6 {[%clk 0:02:22]}  Rf7 {[%clk 0:01:34]} 24. Bg5 {[%clk 0:02:12]}  Na5 {[%clk 0:01:03]} 25. b3 {[%clk 0:02:09]}  Rff8 {[%clk 0:00:58]} 26. c4 {[%clk 0:02:04]}  Nc6 {[%clk 0:00:54]} 27. Be3 {[%clk 0:01:57]}  Bxg3 {[%clk 0:00:45]} 28. hxg3 {[%clk 0:01:56]}  Re4 {[%clk 0:00:44]} 29. Rad1 {[%clk 0:01:54]}  Rfe8 {[%clk 0:00:43]} 30. Bf2 {[%clk 0:01:53]}  Qd7 {[%clk 0:00:39]} 31. Qc3 {[%clk 0:01:49]}  Nd8 {[%clk 0:00:22]} 32. d5 {[%clk 0:01:45]}  Nf7 {[%clk 0:00:22]} 33. Bxa7 {[%clk 0:01:43]}  Ng5 {[%clk 0:00:19]} 34. Qb4 {[%clk 0:01:37]}  Re2 {[%clk 0:00:16]} 35. Qc5+ {[%clk 0:01:36]}  Qc7 {[%clk 0:00:16]} 36. Qxc7+ {[%clk 0:01:34]}  Kxc7 {[%clk 0:00:16]} 37. d6+ {[%clk 0:01:34]}  Kd7 {[%clk 0:00:16]} 38. Rf2 {[%clk 0:01:30]}  Re1+ {[%clk 0:00:15]} 39. Rxe1 {[%clk 0:01:26]}  Rxe1+ {[%clk 0:00:16]} 40. Rf1 {[%clk 0:01:25]}  Rxf1+ {[%clk 0:00:16]} 41. Kxf1 {[%clk 0:01:25]}  Kxd6 {[%clk 0:00:17]} 42. Bf2 {[%clk 0:01:20]}  h5 {[%clk 0:00:17]} 43. Ke2 {[%clk 0:01:19]}  Ne4 {[%clk 0:00:17]} 44. Be1 {[%clk 0:01:19]}  Kc6 {[%clk 0:00:17]} 45. Kd3 {[%clk 0:01:19]}  Nc5+ {[%clk 0:00:15]} 46. Kd4 {[%clk 0:01:19]}  Ne4 {[%clk 0:00:15]} 47. Ke5 {[%clk 0:01:18]}  Nc5 {[%clk 0:00:08]} 48. Kf6 {[%clk 0:01:14]}  Nd3 {[%clk 0:00:05]} 49. Bc3 {[%clk 0:01:09]}  f4 {[%clk 0:00:05]} 50. Kxg6 {[%clk 0:01:04]}  fxg3 {[%clk 0:00:05]} 51. Kxh5 {[%clk 0:01:04]}  Nf4+ {[%clk 0:00:06]} 52. Kg4 {[%clk 0:01:03]}  Nxg2 {[%clk 0:00:00]} 53. Bd2 {[%clk 0:00:58]} 1-0


[Site "https://www.chess.com"]

[Event "Titled Tuesday Blitz May 9 Early 2023"]
[White "Llanos, Guillermo"]
[Black "Ramirez, Maria Eugenia"]
[WhiteFideId "100358"]
[BlackFideId "3301680"]
[WhiteElo "2225"]
[BlackElo "1842"]
[Result "0-1"]
[Round "08"]
[TimeControl "180+2"]
[Date "2023.05.09"]
[WhiteClock "0:01:03"]
[BlackClock "0:01:20"]

1. Nf3 {[%clk 0:02:56]}  Nf6 {[%clk 0:02:59]} 2. g3 {[%clk 0:02:55]}  e6 {[%clk 0:02:58]} 3. Bg2 {[%clk 0:02:55]}  d5 {[%clk 0:02:59]} 4. O-O {[%clk 0:02:56]}  Be7 {[%clk 0:02:58]} 5. c4 {[%clk 0:02:56]}  c6 {[%clk 0:02:57]} 6. b3 {[%clk 0:02:56]}  O-O {[%clk 0:02:57]} 7. Bb2 {[%clk 0:02:56]}  dxc4 {[%clk 0:02:47]} 8. bxc4 {[%clk 0:02:55]}  Qb6 {[%clk 0:02:46]} 9. Qc1 {[%clk 0:02:53]}  Nbd7 {[%clk 0:02:45]} 10. d4 {[%clk 0:02:52]}  Ne4 {[%clk 0:02:36]} 11. Nc3 {[%clk 0:02:50]}  Ndf6 {[%clk 0:02:34]} 12. Nxe4 {[%clk 0:02:49]}  Nxe4 {[%clk 0:02:33]} 13. Rd1 {[%clk 0:02:48]}  Qc7 {[%clk 0:02:29]} 14. e3 {[%clk 0:02:42]}  b6 {[%clk 0:02:25]} 15. Ne5 {[%clk 0:02:39]}  f5 {[%clk 0:02:18]} 16. a4 {[%clk 0:02:35]}  Bb7 {[%clk 0:02:17]} 17. a5 {[%clk 0:02:19]}  Bf6 {[%clk 0:02:16]} 18. a6 {[%clk 0:02:12]}  Bc8 {[%clk 0:02:09]} 19. f3 {[%clk 0:01:55]}  Bxe5 {[%clk 0:01:59]} 20. dxe5 {[%clk 0:01:45]}  Nc5 {[%clk 0:01:59]} 21. Rd6 {[%clk 0:01:40]}  Bxa6 {[%clk 0:01:51]} 22. Bd4 {[%clk 0:01:36]}  Nb3 {[%clk 0:01:49]} 23. Qb2 {[%clk 0:01:33]}  Nxa1 {[%clk 0:01:46]} 24. Qxa1 {[%clk 0:01:31]}  Bxc4 {[%clk 0:01:46]} 25. f4 {[%clk 0:01:30]}  Bd5 {[%clk 0:01:44]} 26. Bxd5 {[%clk 0:01:26]}  cxd5 {[%clk 0:01:39]} 27. Rxe6 {[%clk 0:01:24]}  Rac8 {[%clk 0:01:34]} 28. Kg2 {[%clk 0:01:21]}  Qc2+ {[%clk 0:01:32]} 29. Kh3 {[%clk 0:01:19]}  Qe2 {[%clk 0:01:28]} 30. Qa4 {[%clk 0:01:03]}  Rc2 {[%clk 0:01:20]} 0-1


[Site "https://www.chess.com"]

[Event "Titled Tuesday Blitz May 9 Early 2023"]
[White "Martin Alvarez, Inigo"]
[Black "Tarnowska, Aleksandra"]
[WhiteFideId "2259354"]
[BlackFideId "1180967"]
[WhiteElo "2330"]
[BlackElo "1776"]
[Result "1/2-1/2"]
[Round "08"]
[TimeControl "180+2"]
[Date "2023.05.09"]
[WhiteClock "0:00:24"]
[BlackClock "0:00:06"]

1. d4 {[%clk 0:02:57]}  d5 {[%clk 0:03:00]} 2. Bf4 {[%clk 0:02:55]}  Nf6 {[%clk 0:02:58]} 3. e3 {[%clk 0:02:53]}  c5 {[%clk 0:02:57]} 4. c3 {[%clk 0:02:49]}  Nc6 {[%clk 0:02:49]} 5. Nf3 {[%clk 0:02:50]}  Bg4 {[%clk 0:02:40]} 6. Nbd2 {[%clk 0:02:39]}  e6 {[%clk 0:02:39]} 7. Qb3 {[%clk 0:02:38]}  Qb6 {[%clk 0:02:32]} 8. Be2 {[%clk 0:02:30]}  c4 {[%clk 0:02:31]} 9. Qc2 {[%clk 0:02:27]}  Bf5 {[%clk 0:02:29]} 10. Qc1 {[%clk 0:02:25]}  a5 {[%clk 0:02:16]} 11. Nh4 {[%clk 0:02:24]}  Bg6 {[%clk 0:02:00]} 12. Nxg6 {[%clk 0:02:21]}  hxg6 {[%clk 0:02:01]} 13. f3 {[%clk 0:02:20]}  Nh5 {[%clk 0:01:50]} 14. Bg5 {[%clk 0:01:51]}  Ng3 {[%clk 0:01:34]} 15. Rg1 {[%clk 0:01:51]}  Nxe2 {[%clk 0:01:29]} 16. Kxe2 {[%clk 0:01:51]}  Rxh2 {[%clk 0:01:28]} 17. Nf1 {[%clk 0:01:48]}  Rh5 {[%clk 0:01:23]} 18. Bf4 {[%clk 0:01:46]}  Be7 {[%clk 0:01:17]} 19. Ng3 {[%clk 0:01:45]}  Rh8 {[%clk 0:01:11]} 20. e4 {[%clk 0:01:45]}  f6 {[%clk 0:00:41]} 21. exd5 {[%clk 0:01:43]}  exd5 {[%clk 0:00:41]} 22. Qc2 {[%clk 0:01:44]}  Kf7 {[%clk 0:00:40]} 23. Rh1 {[%clk 0:01:43]}  g5 {[%clk 0:00:34]} 24. Bxg5 {[%clk 0:01:38]}  Rxh1 {[%clk 0:00:10]} 25. Rxh1 {[%clk 0:01:35]}  Re8 {[%clk 0:00:10]} 26. Be3 {[%clk 0:01:24]}  Bd6 {[%clk 0:00:07]} 27. Nf5 {[%clk 0:01:24]}  Bf4 {[%clk 0:00:07]} 28. Kf2 {[%clk 0:01:19]}  Bxe3+ {[%clk 0:00:07]} 29. Nxe3 {[%clk 0:01:19]}  Ne7 {[%clk 0:00:06]} 30. g4 {[%clk 0:01:13]}  Qe6 {[%clk 0:00:06]} 31. Re1 {[%clk 0:01:07]}  Qd6 {[%clk 0:00:07]} 32. Kg2 {[%clk 0:01:02]}  Rh8 {[%clk 0:00:07]} 33. Rh1 {[%clk 0:00:58]}  Rxh1 {[%clk 0:00:05]} 34. Kxh1 {[%clk 0:00:59]}  Qf4 {[%clk 0:00:05]} 35. Qe2 {[%clk 0:00:57]}  b6 {[%clk 0:00:03]} 36. Kg2 {[%clk 0:00:57]}  g6 {[%clk 0:00:03]} 37. Nf1 {[%clk 0:00:53]}  Qc1 {[%clk 0:00:02]} 38. Ng3 {[%clk 0:00:51]}  g5 {[%clk 0:00:02]} 39. Nf5 {[%clk 0:00:50]}  Nxf5 {[%clk 0:00:03]} 40. gxf5 {[%clk 0:00:50]}  Qb1 {[%clk 0:00:03]} 41. Qe6+ {[%clk 0:00:50]}  Kg7 {[%clk 0:00:03]} 42. Qe7+ {[%clk 0:00:50]}  Kg8 {[%clk 0:00:03]} 43. Qe8+ {[%clk 0:00:50]}  Kg7 {[%clk 0:00:03]} 44. Qg6+ {[%clk 0:00:50]}  Kf8 {[%clk 0:00:01]} 45. Qxf6+ {[%clk 0:00:50]}  Ke8 {[%clk 0:00:02]} 46. Qg6+ {[%clk 0:00:50]}  Kd7 {[%clk 0:00:02]} 47. Qxb6 {[%clk 0:00:46]}  Qxf5 {[%clk 0:00:02]} 48. Qb5+ {[%clk 0:00:43]}  Ke7 {[%clk 0:00:02]} 49. Qc5+ {[%clk 0:00:43]}  Kd7 {[%clk 0:00:02]} 50. Qa7+ {[%clk 0:00:42]}  Kd6 {[%clk 0:00:02]} 51. Qa6+ {[%clk 0:00:41]}  Kd7 {[%clk 0:00:02]} 52. Qxa5 {[%clk 0:00:42]}  Qc2+ {[%clk 0:00:02]} 53. Kg3 {[%clk 0:00:41]}  Qxb2 {[%clk 0:00:02]} 54. Qxd5+ {[%clk 0:00:40]}  Ke7 {[%clk 0:00:01]} 55. Qxg5+ {[%clk 0:00:40]}  Kf8 {[%clk 0:00:01]} 56. Qc5+ {[%clk 0:00:39]}  Kf7 {[%clk 0:00:02]} 57. Qxc4+ {[%clk 0:00:39]}  Kg6 {[%clk 0:00:02]} 58. Qc6+ {[%clk 0:00:38]}  Kg5 {[%clk 0:00:02]} 59. f4+ {[%clk 0:00:37]}  Kf5 {[%clk 0:00:02]} 60. Qd5+ {[%clk 0:00:37]}  Kg6 {[%clk 0:00:02]} 61. f5+ {[%clk 0:00:35]}  Kg5 {[%clk 0:00:01]} 62. Qf3 {[%clk 0:00:31]}  Kf6 {[%clk 0:00:01]} 63. a4 {[%clk 0:00:28]}  Qc1 {[%clk 0:00:02]} 64. a5 {[%clk 0:00:24]}  Qg5+ {[%clk 0:00:02]} 65. Kf2 {[%clk 0:00:24]}  Qd2+ {[%clk 0:00:03]} 66. Kf1 {[%clk 0:00:24]}  Qc1+ {[%clk 0:00:03]} 67. Ke2 {[%clk 0:00:24]}  Qc2+ {[%clk 0:00:03]} 68. Ke3 {[%clk 0:00:21]}  Qxc3+ {[%clk 0:00:03]} 69. Kf4 {[%clk 0:00:22]}  Qxd4+ {[%clk 0:00:04]} 70. Kg3 {[%clk 0:00:23]}  Qe5+ {[%clk 0:00:04]} 71. Qf4 {[%clk 0:00:23]}  Qxa5 {[%clk 0:00:04]} 72. Qh6+ {[%clk 0:00:21]}  Kf7 {[%clk 0:00:03]} 73. Qg6+ {[%clk 0:00:21]}  Kf8 {[%clk 0:00:03]} 74. f6 {[%clk 0:00:20]}  Qc3+ {[%clk 0:00:03]} 75. Kg4 {[%clk 0:00:20]}  Qd4+ {[%clk 0:00:03]} 76. Kg5 {[%clk 0:00:20]}  Qg1+ {[%clk 0:00:03]} 77. Kh6 {[%clk 0:00:20]}  Qxg6+ {[%clk 0:00:02]} 78. Kxg6 {[%clk 0:00:19]}  Kg8 {[%clk 0:00:02]} 79. Kf5 {[%clk 0:00:20]}  Kf7 {[%clk 0:00:03]} 80. Ke5 {[%clk 0:00:20]}  Kf8 {[%clk 0:00:03]} 81. Kd6 {[%clk 0:00:20]}  Kf7 {[%clk 0:00:04]} 82. Ke5 {[%clk 0:00:21]}  Kf8 {[%clk 0:00:04]} 83. Kf4 {[%clk 0:00:21]}  Kf7 {[%clk 0:00:05]} 84. Kg5 {[%clk 0:00:22]}  Kf8 {[%clk 0:00:05]} 85. Kg6 {[%clk 0:00:22]}  Kg8 {[%clk 0:00:06]} 86. f7+ {[%clk 0:00:23]}  Kf8 {[%clk 0:00:06]} 87. Kf6 {[%clk 0:00:24]} 1/2-1/2


[Site "https://www.chess.com"]

[Event "Titled Tuesday Blitz May 9 Early 2023"]
[White "Dinu, Dumitru-Daniel"]
[Black "Kuchava, Ana"]
[WhiteFideId "1208403"]
[BlackFideId "13605348"]
[WhiteElo "2240"]
[BlackElo "2001"]
[Result "1-0"]
[Round "08"]
[TimeControl "180+2"]
[Date "2023.05.09"]
[WhiteClock "0:00:03"]
[BlackClock "0:00:03"]

1. e4 {[%clk 0:03:00]}  c5 {[%clk 0:02:59]} 2. b3 {[%clk 0:03:00]}  Nc6 {[%clk 0:02:57]} 3. Bb2 {[%clk 0:02:59]}  Nf6 {[%clk 0:02:53]} 4. d3 {[%clk 0:02:57]}  d6 {[%clk 0:02:52]} 5. f4 {[%clk 0:02:55]}  g6 {[%clk 0:02:51]} 6. Nf3 {[%clk 0:02:55]}  Bg7 {[%clk 0:02:51]} 7. Nbd2 {[%clk 0:02:51]}  O-O {[%clk 0:02:43]} 8. Qe2 {[%clk 0:02:47]}  Rb8 {[%clk 0:02:13]} 9. h3 {[%clk 0:02:41]}  b5 {[%clk 0:02:11]} 10. g4 {[%clk 0:02:39]}  Nb4 {[%clk 0:02:03]} 11. Kd1 {[%clk 0:02:05]}  Bb7 {[%clk 0:01:33]} 12. a3 {[%clk 0:02:01]}  Nc6 {[%clk 0:01:31]} 13. Bg2 {[%clk 0:01:55]}  Qb6 {[%clk 0:01:27]} 14. Kc1 {[%clk 0:01:36]}  Rfc8 {[%clk 0:01:22]} 15. e5 {[%clk 0:01:28]}  dxe5 {[%clk 0:01:15]} 16. Nxe5 {[%clk 0:01:24]}  Nxe5 {[%clk 0:01:09]} 17. Bxe5 {[%clk 0:01:22]}  Ra8 {[%clk 0:01:06]} 18. Bxb7 {[%clk 0:01:10]}  Qxb7 {[%clk 0:01:07]} 19. Kb2 {[%clk 0:01:08]}  c4 {[%clk 0:00:57]} 20. dxc4 {[%clk 0:01:05]}  bxc4 {[%clk 0:00:58]} 21. Nxc4 {[%clk 0:01:03]}  a5 {[%clk 0:00:28]} 22. a4 {[%clk 0:01:00]}  Rab8 {[%clk 0:00:22]} 23. Rad1 {[%clk 0:00:32]}  Qa6 {[%clk 0:00:19]} 24. Rd4 {[%clk 0:00:28]}  Ne8 {[%clk 0:00:08]} 25. Bxg7 {[%clk 0:00:26]}  Nxg7 {[%clk 0:00:08]} 26. Ka2 {[%clk 0:00:21]}  Ne6 {[%clk 0:00:08]} 27. Rdd1 {[%clk 0:00:17]}  Qb7 {[%clk 0:00:06]} 28. f5 {[%clk 0:00:13]}  Nd4 {[%clk 0:00:04]} 29. Rxd4 {[%clk 0:00:09]}  Qxh1 {[%clk 0:00:04]} 30. fxg6 {[%clk 0:00:09]}  hxg6 {[%clk 0:00:04]} 31. Qxe7 {[%clk 0:00:09]}  Qxh3 {[%clk 0:00:04]} 32. Rf4 {[%clk 0:00:06]}  Rf8 {[%clk 0:00:02]} 33. Qg5 {[%clk 0:00:03]}  Qg2 {[%clk 0:00:02]} 34. Kb2 {[%clk 0:00:03]}  Qe2 {[%clk 0:00:01]} 35. Rd4 {[%clk 0:00:02]}  Qe6 {[%clk 0:00:01]} 36. Nd2 {[%clk 0:00:01]}  Ra8 {[%clk 0:00:01]} 37. Nc4 {[%clk 0:00:01]}  Rfc8 {[%clk 0:00:01]} 38. Rd6 {[%clk 0:00:01]}  Rab8 {[%clk 0:00:02]} 39. Rxe6 {[%clk 0:00:01]}  fxe6 {[%clk 0:00:03]} 40. Qxg6+ {[%clk 0:00:02]}  Kf8 {[%clk 0:00:03]} 41. Qf6+ {[%clk 0:00:02]}  Ke8 {[%clk 0:00:03]} 42. Qxe6+ {[%clk 0:00:03]}  Kd8 {[%clk 0:00:03]} 43. Nd6 {[%clk 0:00:03]}  Rc7 {[%clk 0:00:03]} 44. Qe8# {[%clk 0:00:03]} 1-0


[Site "https://www.chess.com"]